[Event "Titled Tuesday Blitz April 25 Early 2023"]
[White "Ramirez, Maria Eugenia"]
[Black "Foerster-Yialamas, Lucas"]
[WhiteFideId "3301680"]
[BlackFideId "30901774"]
[WhiteElo "1842"]
[BlackElo "2067"]
[Result "1/2-1/2"]
[Round "02"]
[TimeControl "180+2"]
[Date "2023.04.25"]
[WhiteClock "0:00:05"]
[BlackClock "0:00:04"]

1. e4 {[%clk 0:03:00]}  e6 {[%clk 0:02:58]} 2. d4 {[%clk 0:03:00]}  d5 {[%clk 0:02:58]} 3. exd5 {[%clk 0:03:01]}  exd5 {[%clk 0:02:58]} 4. c4 {[%clk 0:03:02]}  c6 {[%clk 0:02:58]} 5. Nf3 {[%clk 0:03:02]}  Nf6 {[%clk 0:02:57]} 6. Be2 {[%clk 0:03:01]}  Bb4+ {[%clk 0:02:58]} 7. Nc3 {[%clk 0:03:01]}  O-O {[%clk 0:02:57]} 8. O-O {[%clk 0:03:01]}  Bxc3 {[%clk 0:02:56]} 9. bxc3 {[%clk 0:03:01]}  Ne4 {[%clk 0:02:57]} 10. Qc2 {[%clk 0:02:58]}  Bf5 {[%clk 0:02:54]} 11. Qb3 {[%clk 0:02:50]}  Qb6 {[%clk 0:02:49]} 12. Qxb6 {[%clk 0:02:39]}  axb6 {[%clk 0:02:50]} 13. Bb2 {[%clk 0:02:39]}  Nd7 {[%clk 0:02:47]} 14. cxd5 {[%clk 0:02:39]}  cxd5 {[%clk 0:02:46]} 15. Nh4 {[%clk 0:02:35]}  Be6 {[%clk 0:02:42]} 16. f3 {[%clk 0:02:26]}  Nd6 {[%clk 0:02:42]} 17. f4 {[%clk 0:02:24]}  Nc4 {[%clk 0:02:36]} 18. Bc1 {[%clk 0:02:14]}  Nf6 {[%clk 0:02:34]} 19. Bxc4 {[%clk 0:02:11]}  dxc4 {[%clk 0:02:31]} 20. f5 {[%clk 0:02:01]}  Bd5 {[%clk 0:02:32]} 21. Bf4 {[%clk 0:01:56]}  Be4 {[%clk 0:02:32]} 22. Be5 {[%clk 0:01:52]}  Nd5 {[%clk 0:02:31]} 23. f6 {[%clk 0:01:28]}  g6 {[%clk 0:02:31]} 24. Bd6 {[%clk 0:01:02]}  Rfe8 {[%clk 0:02:28]} 25. Bb4 {[%clk 0:01:02]}  Nxb4 {[%clk 0:02:21]} 26. cxb4 {[%clk 0:01:02]}  c3 {[%clk 0:02:22]} 27. Nf3 {[%clk 0:00:56]}  c2 {[%clk 0:02:20]} 28. Rfc1 {[%clk 0:00:51]}  Rec8 {[%clk 0:02:11]} 29. Kf2 {[%clk 0:00:42]}  Rc4 {[%clk 0:02:11]} 30. Nd2 {[%clk 0:00:40]}  Rxd4 {[%clk 0:02:10]} 31. Nxe4 {[%clk 0:00:40]}  Rxe4 {[%clk 0:02:11]} 32. Rxc2 {[%clk 0:00:40]}  Rxb4 {[%clk 0:02:12]} 33. Rac1 {[%clk 0:00:38]}  h5 {[%clk 0:02:07]} 34. Rc8+ {[%clk 0:00:35]}  Rxc8 {[%clk 0:02:07]} 35. Rxc8+ {[%clk 0:00:35]}  Kh7 {[%clk 0:02:08]} 36. Rc7 {[%clk 0:00:33]}  Rf4+ {[%clk 0:02:06]} 37. Ke3 {[%clk 0:00:32]}  Rxf6 {[%clk 0:02:07]} 38. Rxb7 {[%clk 0:00:32]}  Re6+ {[%clk 0:02:03]} 39. Kf3 {[%clk 0:00:31]}  Kg7 {[%clk 0:02:03]} 40. h4 {[%clk 0:00:29]}  Kf6 {[%clk 0:01:54]} 41. a4 {[%clk 0:00:29]}  Rd6 {[%clk 0:01:54]} 42. Ra7 {[%clk 0:00:25]}  Ke6 {[%clk 0:01:48]} 43. a5 {[%clk 0:00:21]}  bxa5 {[%clk 0:01:44]} 44. Rxa5 {[%clk 0:00:20]}  Rd3+ {[%clk 0:01:29]} 45. Kf4 {[%clk 0:00:17]}  Rd4+ {[%clk 0:01:28]} 46. Kg3 {[%clk 0:00:17]}  Rc4 {[%clk 0:01:19]} 47. Ra6+ {[%clk 0:00:16]}  Ke5 {[%clk 0:01:12]} 48. Ra5+ {[%clk 0:00:16]}  Ke4 {[%clk 0:01:13]} 49. Kh3 {[%clk 0:00:14]}  Rc3+ {[%clk 0:01:09]} 50. g3 {[%clk 0:00:13]}  f6 {[%clk 0:00:59]} 51. Ra4+ {[%clk 0:00:13]}  Ke5 {[%clk 0:00:51]} 52. Rf4 {[%clk 0:00:13]}  g5 {[%clk 0:00:41]} 53. hxg5 {[%clk 0:00:10]}  fxg5 {[%clk 0:00:42]} 54. Rf2 {[%clk 0:00:11]}  Rc1 {[%clk 0:00:32]} 55. Kg2 {[%clk 0:00:09]}  g4 {[%clk 0:00:30]} 56. Ra2 {[%clk 0:00:07]}  Kd5 {[%clk 0:00:28]} 57. Ra5+ {[%clk 0:00:07]}  Rc5 {[%clk 0:00:28]} 58. Ra8 {[%clk 0:00:06]}  Rc2+ {[%clk 0:00:25]} 59. Kg1 {[%clk 0:00:06]}  Kd4 {[%clk 0:00:19]} 60. Re8 {[%clk 0:00:05]}  Rc3 {[%clk 0:00:16]} 61. Kg2 {[%clk 0:00:05]}  Rc5 {[%clk 0:00:16]} 62. Rd8+ {[%clk 0:00:04]}  Rd5 {[%clk 0:00:16]} 63. Re8 {[%clk 0:00:04]}  Kd3 {[%clk 0:00:14]} 64. Rh8 {[%clk 0:00:04]}  Re5 {[%clk 0:00:12]} 65. Rd8+ {[%clk 0:00:04]}  Ke4 {[%clk 0:00:12]} 66. Rf8 {[%clk 0:00:04]}  Ra5 {[%clk 0:00:09]} 67. Re8+ {[%clk 0:00:04]}  Kf5 {[%clk 0:00:06]} 68. Rf8+ {[%clk 0:00:04]}  Kg6 {[%clk 0:00:06]} 69. Rg8+ {[%clk 0:00:04]}  Kh7 {[%clk 0:00:05]} 70. Rf8 {[%clk 0:00:04]}  Kg6 {[%clk 0:00:04]} 71. Rg8+ {[%clk 0:00:05]}  Kf7 {[%clk 0:00:04]} 72. Rh8 {[%clk 0:00:05]}  Kg6 {[%clk 0:00:04]} 73. Rg8+ {[%clk 0:00:05]} 1/2-1/2


[Site "https://www.chess.com"]

[Event "Titled Tuesday Blitz April 25 Early 2023"]
[White "Hajiyev, Kanan"]
[Black "Singh, Arvinder Preet"]
[WhiteFideId "13404148"]
[BlackFideId "5013240"]
[WhiteElo "2103"]
[BlackElo "2124"]
[Result "1-0"]
[Round "02"]
[TimeControl "180+2"]
[Date "2023.04.25"]
[WhiteClock "0:00:48"]
[BlackClock "0:01:49"]

1. d4 {[%clk 0:02:58]}  f5 {[%clk 0:02:54]} 2. g3 {[%clk 0:02:55]}  Nf6 {[%clk 0:02:55]} 3. Bg2 {[%clk 0:02:56]}  g6 {[%clk 0:02:55]} 4. Nh3 {[%clk 0:02:56]}  Bg7 {[%clk 0:02:55]} 5. O-O {[%clk 0:02:57]}  O-O {[%clk 0:02:55]} 6. b3 {[%clk 0:02:58]}  d6 {[%clk 0:02:55]} 7. Bb2 {[%clk 0:02:58]}  c6 {[%clk 0:02:56]} 8. Nd2 {[%clk 0:02:58]}  Qc7 {[%clk 0:02:56]} 9. c4 {[%clk 0:02:58]}  Re8 {[%clk 0:02:56]} 10. e4 {[%clk 0:02:57]}  fxe4 {[%clk 0:02:53]} 11. Ng5 {[%clk 0:02:56]}  d5 {[%clk 0:02:51]} 12. f3 {[%clk 0:02:50]}  e3 {[%clk 0:02:50]} 13. Nb1 {[%clk 0:02:49]}  h6 {[%clk 0:02:44]} 14. Nh3 {[%clk 0:02:46]}  e5 {[%clk 0:02:41]} 15. dxe5 {[%clk 0:02:42]}  Nfd7 {[%clk 0:02:41]} 16. f4 {[%clk 0:02:38]}  dxc4 {[%clk 0:02:33]} 17. Nc3 {[%clk 0:02:25]}  Qb6 {[%clk 0:02:27]} 18. Kh1 {[%clk 0:02:22]}  Na6 {[%clk 0:02:25]} 19. Qc2 {[%clk 0:02:15]}  Nb4 {[%clk 0:02:24]} 20. Qxg6 {[%clk 0:02:14]}  Nf8 {[%clk 0:02:24]} 21. Qxe8 {[%clk 0:02:06]}  Bxh3 {[%clk 0:02:22]} 22. Qxa8 {[%clk 0:02:03]}  Bxg2+ {[%clk 0:02:21]} 23. Kxg2 {[%clk 0:02:04]}  e2 {[%clk 0:02:21]} 24. Nxe2 {[%clk 0:02:01]}  Qe3 {[%clk 0:02:18]} 25. Rae1 {[%clk 0:01:45]}  Nd3 {[%clk 0:02:17]} 26. Bd4 {[%clk 0:01:21]}  Qe4+ {[%clk 0:02:14]} 27. Kh3 {[%clk 0:01:18]}  Qf5+ {[%clk 0:02:13]} 28. Kg2 {[%clk 0:01:18]}  Qe4+ {[%clk 0:02:13]} 29. Kg1 {[%clk 0:01:17]}  Nxe1 {[%clk 0:02:12]} 30. Rxe1 {[%clk 0:01:18]}  c3 {[%clk 0:02:06]} 31. Bxc3 {[%clk 0:01:14]}  Qe3+ {[%clk 0:02:05]} 32. Kg2 {[%clk 0:01:12]}  Qe4+ {[%clk 0:02:05]} 33. Kf2 {[%clk 0:01:12]}  Kh7 {[%clk 0:02:00]} 34. Qxa7 {[%clk 0:01:02]}  Ne6 {[%clk 0:01:59]} 35. Qe3 {[%clk 0:01:01]}  Qf5 {[%clk 0:01:59]} 36. Nd4 {[%clk 0:01:00]}  Nxd4 {[%clk 0:01:56]} 37. Bxd4 {[%clk 0:01:00]}  Qh3 {[%clk 0:01:55]} 38. Kg1 {[%clk 0:00:56]}  Qe6 {[%clk 0:01:54]} 39. Qe4+ {[%clk 0:00:51]}  Kh8 {[%clk 0:01:54]} 40. f5 {[%clk 0:00:52]}  Qe8 {[%clk 0:01:48]} 41. f6 {[%clk 0:00:49]}  Bf8 {[%clk 0:01:49]} 42. e6 {[%clk 0:00:49]}  c5 {[%clk 0:01:49]} 43. f7+ {[%clk 0:00:48]} 1-0


[Site "https://www.chess.com"]

[Event "Titled Tuesday Blitz April 25 Early 2023"]
[White "hsd2016"]
[Black "Dudzinski, Pawel"]
[BlackFideId "1117890"]
[WhiteElo "2196"]
[BlackElo "2099"]
[Result "0-1"]
[Round "02"]
[TimeControl "180+2"]
[Date "2023.04.25"]
[WhiteClock "0:00:11"]
[BlackClock "0:00:23"]

1. e4 {[%clk 0:03:00]}  c6 {[%clk 0:02:56]} 2. d4 {[%clk 0:03:00]}  d5 {[%clk 0:02:57]} 3. Nd2 {[%clk 0:03:01]}  dxe4 {[%clk 0:02:57]} 4. Nxe4 {[%clk 0:03:02]}  Nf6 {[%clk 0:02:58]} 5. Nxf6+ {[%clk 0:03:01]}  exf6 {[%clk 0:02:58]} 6. c3 {[%clk 0:03:01]}  Bd6 {[%clk 0:02:59]} 7. Bd3 {[%clk 0:03:02]}  O-O {[%clk 0:03:00]} 8. Qc2 {[%clk 0:03:03]}  Re8+ {[%clk 0:02:59]} 9. Ne2 {[%clk 0:03:04]}  h6 {[%clk 0:03:00]} 10. O-O {[%clk 0:03:03]}  Qc7 {[%clk 0:02:59]} 11. h3 {[%clk 0:03:02]}  Be6 {[%clk 0:02:59]} 12. Be3 {[%clk 0:03:02]}  Nd7 {[%clk 0:02:59]} 13. c4 {[%clk 0:03:00]}  Nf8 {[%clk 0:02:44]} 14. c5 {[%clk 0:02:53]}  Be7 {[%clk 0:02:32]} 15. Bf4 {[%clk 0:02:49]}  Qd7 {[%clk 0:02:32]} 16. Rad1 {[%clk 0:02:46]}  Bd5 {[%clk 0:02:29]} 17. Nc3 {[%clk 0:02:40]}  Ne6 {[%clk 0:02:25]} 18. Be3 {[%clk 0:02:25]}  Nc7 {[%clk 0:02:14]} 19. Rfe1 {[%clk 0:02:17]}  Be6 {[%clk 0:02:14]} 20. Be4 {[%clk 0:02:10]}  f5 {[%clk 0:02:04]} 21. Bf3 {[%clk 0:02:09]}  Nd5 {[%clk 0:02:04]} 22. Nxd5 {[%clk 0:01:43]}  Bxd5 {[%clk 0:02:05]} 23. Qe2 {[%clk 0:01:37]}  Bxa2 {[%clk 0:02:02]} 24. d5 {[%clk 0:01:10]}  Bxd5 {[%clk 0:01:57]} 25. Bxd5 {[%clk 0:01:09]}  cxd5 {[%clk 0:01:58]} 26. Qf3 {[%clk 0:01:10]}  Rad8 {[%clk 0:01:54]} 27. Rd3 {[%clk 0:01:10]}  Bf6 {[%clk 0:01:51]} 28. Red1 {[%clk 0:01:10]}  Qc6 {[%clk 0:00:56]} 29. Rxd5 {[%clk 0:00:34]}  Rxd5 {[%clk 0:00:55]} 30. Rxd5 {[%clk 0:00:35]}  Bxb2 {[%clk 0:00:44]} 31. Qxf5 {[%clk 0:00:30]}  Bf6 {[%clk 0:00:24]} 32. Rd6 {[%clk 0:00:14]}  Qe4 {[%clk 0:00:23]} 33. Qxe4 {[%clk 0:00:10]}  Rxe4 {[%clk 0:00:24]} 34. Bxh6 {[%clk 0:00:11]}  Re1+ {[%clk 0:00:23]} 35. Kh2 {[%clk 0:00:11]}  Be5+ {[%clk 0:00:23]} 0-1


[Site "https://www.chess.com"]

[Event "Titled Tuesday Blitz April 25 Early 2023"]
[White "Nilsen, Tobias Lang"]
[Black "Cesar Maestre, Bernardo"]
[WhiteFideId "1521624"]
[BlackFideId "24542547"]
[WhiteElo "2183"]
[BlackElo "2271"]
[Result "0-1"]
[Round "02"]
[TimeControl "180+2"]
[Date "2023.04.25"]
[WhiteClock "0:00:32"]
[BlackClock "0:00:04"]

1. e4 {[%clk 0:03:00]}  c6 {[%clk 0:02:54]} 2. Nc3 {[%clk 0:03:00]}  d5 {[%clk 0:02:55]} 3. Nf3 {[%clk 0:03:01]}  Bg4 {[%clk 0:02:54]} 4. h3 {[%clk 0:03:01]}  Bxf3 {[%clk 0:02:55]} 5. Qxf3 {[%clk 0:03:01]}  e6 {[%clk 0:02:56]} 6. d3 {[%clk 0:03:01]}  Nd7 {[%clk 0:02:54]} 7. g4 {[%clk 0:03:00]}  Bb4 {[%clk 0:02:44]} 8. Bd2 {[%clk 0:03:00]}  Qb6 {[%clk 0:02:42]} 9. O-O-O {[%clk 0:02:59]}  a5 {[%clk 0:02:39]} 10. Qg3 {[%clk 0:02:56]}  a4 {[%clk 0:02:36]} 11. a3 {[%clk 0:02:56]}  Bxc3 {[%clk 0:02:17]} 12. Bxc3 {[%clk 0:02:56]}  d4 {[%clk 0:02:18]} 13. Bd2 {[%clk 0:02:55]}  Ne7 {[%clk 0:02:17]} 14. f4 {[%clk 0:02:54]}  c5 {[%clk 0:02:17]} 15. f5 {[%clk 0:02:54]}  e5 {[%clk 0:02:17]} 16. g5 {[%clk 0:02:54]}  Nc6 {[%clk 0:02:17]} 17. h4 {[%clk 0:02:54]}  O-O-O {[%clk 0:02:02]} 18. Bh3 {[%clk 0:02:52]}  Kb8 {[%clk 0:01:55]} 19. h5 {[%clk 0:02:51]}  Ka8 {[%clk 0:01:52]} 20. g6 {[%clk 0:02:50]}  hxg6 {[%clk 0:01:47]} 21. fxg6 {[%clk 0:02:50]}  fxg6 {[%clk 0:01:39]} 22. Qxg6 {[%clk 0:02:42]}  c4 {[%clk 0:01:28]} 23. Bxd7 {[%clk 0:02:37]}  Rxd7 {[%clk 0:01:29]} 24. dxc4 {[%clk 0:02:37]}  d3 {[%clk 0:01:23]} 25. Bc3 {[%clk 0:02:32]}  Qe3+ {[%clk 0:01:09]} 26. Bd2 {[%clk 0:02:28]}  Qc5 {[%clk 0:01:03]} 27. Qg4 {[%clk 0:02:24]}  Qxc4 {[%clk 0:01:01]} 28. Bc3 {[%clk 0:02:23]}  Rhd8 {[%clk 0:00:54]} 29. cxd3 {[%clk 0:02:18]}  Rxd3 {[%clk 0:00:54]} 30. Rxd3 {[%clk 0:02:18]}  Rxd3 {[%clk 0:00:55]} 31. Rd1 {[%clk 0:02:19]}  Rxc3+ {[%clk 0:00:53]} 32. bxc3 {[%clk 0:02:18]}  Qxc3+ {[%clk 0:00:54]} 33. Kb1 {[%clk 0:02:18]}  Nd4 {[%clk 0:00:37]} 34. Rxd4 {[%clk 0:01:57]}  exd4 {[%clk 0:00:25]} 35. Qxg7 {[%clk 0:01:57]}  Qe1+ {[%clk 0:00:18]} 36. Kc2 {[%clk 0:01:56]}  Qe2+ {[%clk 0:00:18]} 37. Kc1 {[%clk 0:01:54]}  d3 {[%clk 0:00:15]} 38. Qf8+ {[%clk 0:01:51]}  Ka7 {[%clk 0:00:16]} 39. Qc5+ {[%clk 0:01:51]}  Kb8 {[%clk 0:00:16]} 40. Qe5+ {[%clk 0:01:21]}  Kc8 {[%clk 0:00:15]} 41. Qe6+ {[%clk 0:01:17]}  Kc7 {[%clk 0:00:14]} 42. Qc4+ {[%clk 0:01:17]}  Kd6 {[%clk 0:00:13]} 43. Kb1 {[%clk 0:01:16]}  Qd1+ {[%clk 0:00:10]} 44. Kb2 {[%clk 0:01:16]}  Qe2+ {[%clk 0:00:08]} 45. Kb1 {[%clk 0:01:13]}  Qd1+ {[%clk 0:00:07]} 46. Kb2 {[%clk 0:01:12]}  d2 {[%clk 0:00:03]} 47. Qc2 {[%clk 0:00:56]}  Qe1 {[%clk 0:00:03]} 48. Qd3+ {[%clk 0:00:56]}  Ke5 {[%clk 0:00:04]} 49. Qd5+ {[%clk 0:00:55]}  Kf4 {[%clk 0:00:04]} 50. Qf5+ {[%clk 0:00:52]}  Ke3 {[%clk 0:00:05]} 51. Qg5+ {[%clk 0:00:51]}  Kd3 {[%clk 0:00:05]} 52. Qd5+ {[%clk 0:00:50]}  Ke2 {[%clk 0:00:05]} 53. Qc4+ {[%clk 0:00:49]}  Kf3 {[%clk 0:00:05]} 54. Qf7+ {[%clk 0:00:48]}  Ke3 {[%clk 0:00:05]} 55. Qg6 {[%clk 0:00:36]}  Qc1+ {[%clk 0:00:04]} 56. Ka2 {[%clk 0:00:36]}  d1=Q {[%clk 0:00:05]} 57. Qg5+ {[%clk 0:00:36]}  Kd3 {[%clk 0:00:05]} 58. Qd5+ {[%clk 0:00:36]}  Ke2 {[%clk 0:00:05]} 59. Qb5+ {[%clk 0:00:32]}  Qd3 {[%clk 0:00:04]} 0-1


[Site "https://www.chess.com"]

[Event "Titled Tuesday Blitz April 25 Early 2023"]
[White "Barria Santos, Jose Guilherme"]
[Black "Jimenez Jimenez, Leandro"]
[WhiteFideId "1939300"]
[BlackFideId "6415253"]
[WhiteElo "2266"]
[BlackElo "2263"]
[Result "0-1"]
[Round "02"]
[TimeControl "180+2"]
[Date "2023.04.25"]
[WhiteClock "0:01:24"]
[BlackClock "0:00:10"]

1. e4 {[%clk 0:03:00]}  e5 {[%clk 0:02:54]} 2. Nf3 {[%clk 0:03:00]}  Nc6 {[%clk 0:02:50]} 3. Bb5 {[%clk 0:03:00]}  a6 {[%clk 0:02:50]} 4. Ba4 {[%clk 0:03:00]}  Nf6 {[%clk 0:02:50]} 5. O-O {[%clk 0:02:57]}  Nxe4 {[%clk 0:02:49]} 6. Re1 {[%clk 0:02:57]}  d5 {[%clk 0:02:46]} 7. d3 {[%clk 0:02:50]}  b5 {[%clk 0:02:08]} 8. dxe4 {[%clk 0:02:48]}  dxe4 {[%clk 0:02:02]} 9. Qe2 {[%clk 0:02:32]}  exf3 {[%clk 0:01:59]} 10. Qxf3 {[%clk 0:02:32]}  Bd7 {[%clk 0:01:31]} 11. Bb3 {[%clk 0:02:32]}  Qf6 {[%clk 0:01:28]} 12. Bd5 {[%clk 0:02:19]}  Qxf3 {[%clk 0:01:16]} 13. Bxf3 {[%clk 0:02:19]}  O-O-O {[%clk 0:01:16]} 14. Nc3 {[%clk 0:02:19]}  Nd4 {[%clk 0:01:11]} 15. Bd1 {[%clk 0:02:10]}  f6 {[%clk 0:01:05]} 16. Be3 {[%clk 0:02:10]}  Bc6 {[%clk 0:00:53]} 17. a4 {[%clk 0:02:09]}  b4 {[%clk 0:00:53]} 18. Ne2 {[%clk 0:02:06]}  Bc5 {[%clk 0:00:42]} 19. c3 {[%clk 0:01:48]}  Nxe2+ {[%clk 0:00:35]} 20. Rxe2 {[%clk 0:01:49]}  Be7 {[%clk 0:00:12]} 21. Bb3 {[%clk 0:01:45]}  bxc3 {[%clk 0:00:10]} 22. bxc3 {[%clk 0:01:44]}  Rd3 {[%clk 0:00:10]} 23. Rb1 {[%clk 0:01:42]}  Rxc3 {[%clk 0:00:10]} 24. Be6+ {[%clk 0:01:42]}  Bd7 {[%clk 0:00:06]} 25. Bxd7+ {[%clk 0:01:39]}  Kxd7 {[%clk 0:00:07]} 26. Rd2+ {[%clk 0:01:40]}  Bd6 {[%clk 0:00:07]} 27. h3 {[%clk 0:01:38]}  Rc4 {[%clk 0:00:08]} 28. a5 {[%clk 0:01:37]}  Ra4 {[%clk 0:00:07]} 29. Rd5 {[%clk 0:01:37]}  Rc8 {[%clk 0:00:07]} 30. Bc5 {[%clk 0:01:37]}  Ke6 {[%clk 0:00:07]} 31. Rbd1 {[%clk 0:01:36]}  Rxa5 {[%clk 0:00:07]} 32. Rxd6+ {[%clk 0:01:31]}  cxd6 {[%clk 0:00:07]} 33. Rxd6+ {[%clk 0:01:31]}  Kf7 {[%clk 0:00:07]} 34. Rd7+ {[%clk 0:01:30]}  Ke8 {[%clk 0:00:06]} 35. Re7+ {[%clk 0:01:29]}  Kd8 {[%clk 0:00:07]} 36. Bb6+ {[%clk 0:01:25]}  Kxe7 {[%clk 0:00:07]} 37. Bxa5 {[%clk 0:01:24]}  Ke6 {[%clk 0:00:08]} 38. Kf1 {[%clk 0:01:23]}  g6 {[%clk 0:00:09]} 39. Ke2 {[%clk 0:01:24]}  f5 {[%clk 0:00:10]} 40. Kd3 {[%clk 0:01:24]}  e4+ {[%clk 0:00:10]} 41. Kd4 {[%clk 0:01:24]}  Rc2 {[%clk 0:00:10]} 0-1


[Site "https://www.chess.com"]

[Event "Titled Tuesday Blitz April 25 Early 2023"]
[White "Mrudul Dehankar"]
[Black "Elaisaz"]
[WhiteFideId "25096990"]
[WhiteElo "2139"]
[BlackElo "2185"]
[Result "1-0"]
[Round "02"]
[TimeControl "180+2"]
[Date "2023.04.25"]
[WhiteClock "0:00:41"]
[BlackClock "0:00:06"]

1. e4 {[%clk 0:02:56]}  c6 {[%clk 0:02:54]} 2. d4 {[%clk 0:02:54]}  d5 {[%clk 0:02:54]} 3. e5 {[%clk 0:02:51]}  Bf5 {[%clk 0:02:46]} 4. Nf3 {[%clk 0:02:47]}  e6 {[%clk 0:02:43]} 5. Be2 {[%clk 0:02:47]}  Nd7 {[%clk 0:02:40]} 6. Nbd2 {[%clk 0:02:41]}  Ne7 {[%clk 0:02:37]} 7. Nb3 {[%clk 0:02:38]}  Ng6 {[%clk 0:02:27]} 8. O-O {[%clk 0:02:33]}  c5 {[%clk 0:02:21]} 9. dxc5 {[%clk 0:02:12]}  Ngxe5 {[%clk 0:02:11]} 10. Nxe5 {[%clk 0:02:07]}  Nxe5 {[%clk 0:02:11]} 11. g4 {[%clk 0:01:25]}  Be4 {[%clk 0:00:57]} 12. f3 {[%clk 0:01:23]}  Bg6 {[%clk 0:00:57]} 13. f4 {[%clk 0:01:23]}  Qc7 {[%clk 0:00:56]} 14. fxe5 {[%clk 0:01:21]}  Bxc5+ {[%clk 0:00:53]} 15. Kh1 {[%clk 0:00:59]}  Bb6 {[%clk 0:00:15]} 16. Bf4 {[%clk 0:00:53]}  O-O {[%clk 0:00:13]} 17. Bd3 {[%clk 0:00:50]}  Be4+ {[%clk 0:00:10]} 18. Bxe4 {[%clk 0:00:48]}  dxe4 {[%clk 0:00:10]} 19. Qe2 {[%clk 0:00:49]}  Qc6 {[%clk 0:00:07]} 20. Rad1 {[%clk 0:00:41]}  Rac8 {[%clk 0:00:06]} 21. c3 {[%clk 0:00:41]} 1-0


[Site "https://www.chess.com"]

[Event "Titled Tuesday Blitz April 25 Early 2023"]
[White "dDobravcan"]
[Black "Kielinkei"]
[WhiteElo "2158"]
[BlackElo "2430"]
[Result "0-1"]
[Round "02"]
[TimeControl "180+2"]
[Date "2023.04.25"]
[WhiteClock "0:00:03"]
[BlackClock "0:00:12"]

1. d4 {[%clk 0:03:00]}  Nf6 {[%clk 0:02:59]} 2. Nc3 {[%clk 0:02:57]}  d5 {[%clk 0:02:58]} 3. Bf4 {[%clk 0:02:56]}  e6 {[%clk 0:02:55]} 4. e3 {[%clk 0:02:54]}  Bd6 {[%clk 0:02:53]} 5. Qd2 {[%clk 0:02:46]}  O-O {[%clk 0:02:51]} 6. O-O-O {[%clk 0:02:47]}  c5 {[%clk 0:02:31]} 7. dxc5 {[%clk 0:02:38]}  Bxc5 {[%clk 0:02:26]} 8. g4 {[%clk 0:02:32]}  Nxg4 {[%clk 0:02:09]} 9. Nf3 {[%clk 0:02:28]}  Nc6 {[%clk 0:01:54]} 10. Rg1 {[%clk 0:02:22]}  e5 {[%clk 0:01:46]} 11. Bg5 {[%clk 0:01:54]}  f6 {[%clk 0:01:40]} 12. Bh4 {[%clk 0:01:49]}  d4 {[%clk 0:01:25]} 13. Bc4+ {[%clk 0:01:34]}  Kh8 {[%clk 0:01:24]} 14. Ne4 {[%clk 0:01:35]}  Be7 {[%clk 0:00:55]} 15. h3 {[%clk 0:01:10]}  Nh6 {[%clk 0:00:51]} 16. Qe1 {[%clk 0:00:38]}  Qa5 {[%clk 0:00:40]} 17. Qf1 {[%clk 0:00:30]}  dxe3 {[%clk 0:00:34]} 18. fxe3 {[%clk 0:00:20]}  Nf5 {[%clk 0:00:34]} 19. Bf2 {[%clk 0:00:18]}  Rd8 {[%clk 0:00:17]} 20. Kb1 {[%clk 0:00:15]}  Rxd1+ {[%clk 0:00:15]} 21. Qxd1 {[%clk 0:00:15]}  Qb4 {[%clk 0:00:13]} 22. Bd3 {[%clk 0:00:11]}  Be6 {[%clk 0:00:11]} 23. Be1 {[%clk 0:00:04]}  Qa4 {[%clk 0:00:12]} 24. b3 {[%clk 0:00:03]}  Qa3 {[%clk 0:00:12]} 0-1


[Site "https://www.chess.com"]

[Event "Titled Tuesday Blitz April 25 Early 2023"]
[White "Vidruska, Renate"]
[Black "Silva, Pedro Gil Ferreira Da"]
[WhiteFideId "11601841"]
[BlackFideId "1946102"]
[WhiteElo "1976"]
[BlackElo "2255"]
[Result "0-1"]
[Round "02"]
[TimeControl "180+2"]
[Date "2023.04.25"]
[WhiteClock "0:00:12"]
[BlackClock "0:01:19"]

1. e4 {[%clk 0:02:13]}  c5 {[%clk 0:02:52]} 2. Nf3 {[%clk 0:02:12]}  e6 {[%clk 0:02:48]} 3. d4 {[%clk 0:02:12]}  cxd4 {[%clk 0:02:49]} 4. Nxd4 {[%clk 0:02:12]}  a6 {[%clk 0:02:50]} 5. Nc3 {[%clk 0:02:12]}  Qc7 {[%clk 0:02:50]} 6. g3 {[%clk 0:02:11]}  Nf6 {[%clk 0:02:46]} 7. Bg2 {[%clk 0:02:10]}  Bb4 {[%clk 0:02:46]} 8. Ne2 {[%clk 0:02:08]}  O-O {[%clk 0:02:46]} 9. O-O {[%clk 0:02:07]}  Nc6 {[%clk 0:02:44]} 10. h3 {[%clk 0:01:59]}  b5 {[%clk 0:02:37]} 11. a3 {[%clk 0:01:48]}  Be7 {[%clk 0:02:37]} 12. g4 {[%clk 0:01:30]}  d6 {[%clk 0:02:34]} 13. Ng3 {[%clk 0:01:28]}  Bb7 {[%clk 0:02:32]} 14. g5 {[%clk 0:01:26]}  Nd7 {[%clk 0:02:31]} 15. f4 {[%clk 0:01:27]}  Rac8 {[%clk 0:02:27]} 16. f5 {[%clk 0:01:27]}  Nce5 {[%clk 0:02:21]} 17. f6 {[%clk 0:01:21]}  gxf6 {[%clk 0:02:21]} 18. gxf6 {[%clk 0:01:22]}  Nxf6 {[%clk 0:02:20]} 19. Nh5 {[%clk 0:01:17]}  Nxh5 {[%clk 0:02:18]} 20. Qxh5 {[%clk 0:01:18]}  Ng6 {[%clk 0:02:15]} 21. Be3 {[%clk 0:01:05]}  Rfe8 {[%clk 0:01:58]} 22. Rf2 {[%clk 0:01:00]}  Bf8 {[%clk 0:01:53]} 23. Raf1 {[%clk 0:00:59]}  Re7 {[%clk 0:01:53]} 24. Bg5 {[%clk 0:00:56]}  Rd7 {[%clk 0:01:52]} 25. Bf6 {[%clk 0:00:56]}  Qc5 {[%clk 0:01:52]} 26. Qg4 {[%clk 0:00:53]}  Bh6 {[%clk 0:01:38]} 27. Kh2 {[%clk 0:00:51]}  Bg7 {[%clk 0:01:34]} 28. h4 {[%clk 0:00:49]}  Bxf6 {[%clk 0:01:33]} 29. Rxf6 {[%clk 0:00:49]}  Qe5+ {[%clk 0:01:34]} 30. Kh1 {[%clk 0:00:47]}  h5 {[%clk 0:01:27]} 31. Qf3 {[%clk 0:00:43]}  Nxh4 {[%clk 0:01:22]} 32. Qh3 {[%clk 0:00:32]}  Nxg2 {[%clk 0:01:22]} 33. Qxg2+ {[%clk 0:00:32]}  Kf8 {[%clk 0:01:22]} 34. Qf3 {[%clk 0:00:16]}  Rcc7 {[%clk 0:01:21]} 35. Re1 {[%clk 0:00:16]}  Ke7 {[%clk 0:01:19]} 36. Kg1 {[%clk 0:00:15]}  Qxf6 {[%clk 0:01:19]} 37. Qxf6+ {[%clk 0:00:13]}  Kxf6 {[%clk 0:01:20]} 38. Rf1+ {[%clk 0:00:12]}  Ke7 {[%clk 0:01:19]} 0-1


[Site "https://www.chess.com"]

[Event "Titled Tuesday Blitz April 25 Early 2023"]
[White "Gil Alba, Hector Luis"]
[Black "Steenbekkers, Franck"]
[WhiteFideId "3504670"]
[BlackFideId "1004220"]
[WhiteElo "2331"]
[BlackElo "2105"]
[Result "1-0"]
[Round "02"]
[TimeControl "180+2"]
[Date "2023.04.25"]
[WhiteClock "0:02:05"]
[BlackClock "0:02:16"]

1. e4 {[%clk 0:02:54]}  c5 {[%clk 0:02:58]} 2. Nf3 {[%clk 0:02:53]}  Nc6 {[%clk 0:02:57]} 3. Bb5 {[%clk 0:02:52]}  e6 {[%clk 0:02:56]} 4. O-O {[%clk 0:02:51]}  Nge7 {[%clk 0:02:56]} 5. Nc3 {[%clk 0:02:51]}  a6 {[%clk 0:02:55]} 6. Bxc6 {[%clk 0:02:48]}  Nxc6 {[%clk 0:02:54]} 7. d4 {[%clk 0:02:48]}  cxd4 {[%clk 0:02:53]} 8. Nxd4 {[%clk 0:02:47]}  Qc7 {[%clk 0:02:52]} 9. Re1 {[%clk 0:02:47]}  Nxd4 {[%clk 0:02:48]} 10. Qxd4 {[%clk 0:02:44]}  Bd6 {[%clk 0:02:48]} 11. Qxg7 {[%clk 0:02:42]}  Be5 {[%clk 0:02:46]} 12. Qh6 {[%clk 0:02:39]}  b5 {[%clk 0:02:43]} 13. Nd5 {[%clk 0:02:31]}  exd5 {[%clk 0:02:38]} 14. exd5 {[%clk 0:02:27]}  Bb7 {[%clk 0:02:37]} 15. Bg5 {[%clk 0:02:17]}  d6 {[%clk 0:02:21]} 16. f4 {[%clk 0:02:07]}  Qxc2 {[%clk 0:02:20]} 17. fxe5 {[%clk 0:02:05]}  Kd7 {[%clk 0:02:16]} 1-0


[Site "https://www.chess.com"]